fUST/lending_fUST_20240918
["ID","MTS","AMOUNT","RATE_DAILY","PERIOD"]
[338443195,1726642258909,-500.0,0.00019452,2]
[338443196,1726642258919,-500.0,0.00019452,2]
[338443197,1726642258928,-2281.85,0.00019452,2]
[338443198,1726642258938,-500.0,0.00019452,2]
[338443199,1726642258948,-724.4,0.00019452,2]
[338443200,1726642258958,-500.0,0.00019452,2]
[338443201,1726642258967,-500.0,0.00019452,2]
[338443202,1726642258976,-500.0,0.00019452,2]
[338443203,1726642258986,-500.0,0.00019452,2]
[338443204,1726642259000,-500.0,0.00019452,2]
[338443205,1726642259010,-500.0,0.00019452,2]
[338443206,1726642259020,-500.0,0.00019452,2]
[338443207,1726642259030,-500.0,0.00019452,2]
[338443208,1726642259041,-552.58,0.00019452,2]
[338443209,1726642259051,-500.0,0.00019452,2]
[338443210,1726642259062,-1292.55,0.00019452,2]
[338443211,1726642259073,-626.42,0.00019452,2]
[338443212,1726642259083,-1254.62,0.00019452,2]
[338443213,1726642259092,-1048.48,0.00019452,2]
[338443214,1726642259102,-500.0,0.00019452,2]
[338443215,1726642259111,-500.0,0.00019452,2]
[338443216,1726642259121,-4131.18,0.00019452,2]
[338443217,1726642259131,-500.0,0.00019452,2]
[338443218,1726642259140,-501.44365997,0.00019452,2]
[338443219,1726642259149,-813.14,0.00019452,2]
[338443220,1726642259160,-500.0,0.00019452,2]
[338443221,1726642259169,-500.0,0.00019452,2]
[338443222,1726642259179,-500.0,0.00019452,2]
[338443223,1726642259189,-185.287631,0.00019452,2]
[338443224,1726642259199,-185.287631,0.00019452,2]
[338443225,1726642259209,-500.0,0.00019452,2]
[338443226,1726642259218,-185.287631,0.00019452,2]
[338443227,1726642259228,-969.3,0.00019452,2]
[338443228,1726642259237,-1944.09,0.00019452,2]
[338443229,1726642259247,-1683.57,0.00019452,2]
[338443230,1726642259256,-1881.49,0.00019452,2]
[338443231,1726642259266,-2596.4,0.00019452,2]
[338443232,1726642259276,-185.287631,0.00019452,2]
[338443233,1726642259286,-1223.12,0.00019452,2]
[338443234,1726642259295,-185.287631,0.00019452,2]
[338443235,1726642259304,-185.287631,0.00019452,2]
[338443236,1726642259314,-221.740558,0.00019452,2]
[338443237,1726642259323,-221.740558,0.00019452,2]
[338443238,1726642259333,-622.2,0.00019452,2]
[338443239,1726642259343,-221.740558,0.00019452,2]
[338443240,1726642259352,-500.0,0.00019452,2]
[338443241,1726642259362,-221.740558,0.00019452,2]
[338443242,1726642259371,-221.740558,0.00019452,2]
[338443243,1726642259380,-598.82,0.00019452,2]
[338443244,1726642259389,-500.0,0.00019452,2]
[338443245,1726642259399,-500.0,0.00019452,2]
[338443246,1726642259409,-2600.87,0.00019452,2]
[338443247,1726642259418,-570.36,0.00019452,2]
[338443248,1726642259428,-500.0,0.00019452,2]
[338443249,1726642259437,-500.0,0.00019452,2]
[338443250,1726642259447,-185.79070844,0.00019452,2]
[338443251,1726642259457,-505.13224443,0.00019452,2]
[338443252,1726642259466,-500.0,0.00019452,2]
[338443253,1726642259475,-613.01407743,0.00019452,2]
[338443254,1726642259485,-221.740558,0.00019452,2]
[338443255,1726642259495,-500.0,0.00019452,2]
[338443256,1726642259504,-1312.16,0.00019452,2]
[338443257,1726642259514,-3143.44,0.00019452,2]
[338443258,1726642259525,-568.5,0.00019452,2]
[338443259,1726642259534,-772.98,0.00019452,2]
[338443260,1726642259544,-2776.44,0.00019452,2]
[338443261,1726642259554,-500.0,0.00019452,2]
[338443262,1726642259564,-1089.77,0.00019452,2]
[338443263,1726642259573,-500.0,0.00019452,2]
[338443264,1726642259583,-500.0,0.00019452,2]
[338443265,1726642259592,-734.12,0.00019452,2]
[338443266,1726642259602,-877.14,0.00019452,2]
[338443267,1726642259611,-664.22,0.00019452,2]
[338443268,1726642259621,-816.31,0.00019452,2]
[338443269,1726642259631,-1834.77,0.00019452,2]
[338443270,1726642259641,-500.0,0.00019452,2]
[338443271,1726642259650,-836.53,0.00019452,2]
[338443272,1726642259661,-500.0,0.00019452,2]
[338443273,1726642259670,-1534.35,0.00019452,2]
[338443274,1726642259679,-1707.57,0.00019452,2]
[338443275,1726642259688,-500.0,0.00019452,2]
[338443276,1726642259698,-1358.622384,0.00019452,2]
[338443277,1726642259707,-500.0,0.00019452,2]
[338443278,1726642259716,-1358.622384,0.00019452,2]
[338443279,1726642259725,-1358.622384,0.00019452,2]
[338443280,1726642259734,-1358.622384,0.00019452,2]
[338443281,1726642259744,-500.0,0.00019452,2]
[338443282,1726642259753,-1358.622384,0.00019452,2]
[338443283,1726642259763,-1358.622384,0.00019452,2]
[338443284,1726642259773,-1358.622384,0.00019452,2]
[338443285,1726642259782,-1358.622384,0.00019452,2]
[338443286,1726642259792,-1325.82,0.00019452,2]
[338443287,1726642259802,-279.5143847,0.00019452,2]
[338443288,1726642259811,-500.0,0.00019452,2]
[338443289,1726642259821,-500.0,0.00019452,2]
[338443290,1726642259830,-500.0,0.00019452,2]
[338443291,1726642259840,-2338.7,0.00019452,2]
[338443292,1726642259850,-903.73,0.00019452,2]
[338443293,1726642259859,-2567.18,0.00019452,2]
[338443294,1726642259869,-704.79,0.00019452,2]
[338443295,1726642259879,-598.02624006,0.00019452,2]
[338443296,1726642260494,-1178.52375994,0.00019452,2]
[338443297,1726642260505,-500.0,0.00019452,2]
[338443298,1726642260515,-500.0,0.00019452,2]
[338443299,1726642260536,-1880.67,0.00019452,2]
[338443300,1726642260548,-500.0,0.00019452,2]
[338443301,1726642260559,-1216.15,0.00019452,2]
[338443302,1726642260569,-500.0,0.00019452,2]
[338443303,1726642260581,-500.0,0.00019452,2]
[338443304,1726642260591,-500.0,0.00019452,2]
[338443305,1726642260602,-2328.86,0.00019452,2]
[338443306,1726642260612,-500.0,0.00019452,2]
[338443307,1726642260623,-500.0,0.00019452,2]
[338443308,1726642260634,-993.88903642,0.00019452,2]
[338443309,1726642260658,-144.92096358,0.00019452,2]
[338443310,1726642260668,-357.39487642,0.00019452,2]
[338443311,1726642260682,-142.60512358,0.00019452,2]
[338443312,1726642260693,-467.06188581,0.00019452,2]
[338443313,1726642260703,-76.02391661,0.00019452,2]
[338443314,1726642261397,-500.0,0.00019178,2]
[338443315,1726642261406,-1466.52471399,0.00019178,2]
[338443316,1726642261418,-3533.47528601,0.00019178,2]
[338443317,1726642261428,-5084.780151,0.00019178,2]
[338443318,1726642261437,-893.60072822,0.00019404,2]
[338443319,1726642261447,-525.09939462,0.00019452,2]
[338443320,1726642261456,-1753.96,0.00019452,2]
[338443321,1726642261466,-500.0,0.00019452,2]
[338443322,1726642261477,-500.0,0.00019452,2]
[338443323,1726642261488,-525.69,0.00019452,2]
[338443324,1726642261499,-500.0,0.00019452,2]
[338443325,1726642261509,-500.0,0.00019452,2]
[338443326,1726642261518,-583.27,0.00019452,2]
[338443327,1726642261529,-568.94,0.00019452,2]
[338443328,1726642261539,-500.0,0.00019452,2]
[338443329,1726642261549,-500.0,0.00019452,2]
[338443330,1726642261559,-1251.5,0.00019452,2]
[338443331,1726642261569,-223.27998815,0.00019452,2]
[338443332,1726642261581,-276.72001185,0.00019452,2]
[338443333,1726642261591,-500.0,0.00019452,2]
[338443334,1726642261600,-500.0,0.00019452,2]
[338443335,1726642261609,-500.0,0.00019452,2]
[338443336,1726642261619,-2432.59,0.00019452,2]
[338443337,1726642261628,-1024.02,0.00019452,2]
[338443338,1726642261637,-500.0,0.00019452,2]
[338443339,1726642261646,-500.0,0.00019452,2]
[338443340,1726642261657,-500.0,0.00019452,2]
[338443341,1726642261667,-500.0,0.00019452,2]
[338443342,1726642261679,-500.0,0.00019452,2]
[338443343,1726642261689,-758.31,0.00019452,2]
[338443344,1726642261700,-500.0,0.00019452,2]
[338443345,1726642261710,-617.18582383,0.00019452,2]
[338443346,1726642261723,-1337.86417617,0.00019452,2]
[338443347,1726642261734,-500.0,0.00019452,2]
[338443348,1726642261745,-685.6,0.00019452,2]
[338443349,1726642261756,-966.13335306,0.00019452,2]
[338443350,1726642261770,-62.87664694,0.00019452,2]
[338443351,1726642261788,-715.42,0.00019452,2]
[338443352,1726642261802,-2116.04,0.00019452,2]
[338443353,1726642261813,-500.0,0.00019452,2]
[338443354,1726642261823,-500.0,0.00019452,2]
[338443355,1726642261833,-500.0,0.00019452,2]
[338443356,1726642261843,-199.93967621,0.00019452,2]
[338443360,1726642607860,1120.12,0.00024,120]
[338443361,1726642608130,1120.12,0.00024,120]
[338443362,1726642608377,1120.12,0.00024,120]
[338443363,1726642608648,1120.12,0.00024,120]
[338443364,1726642608953,1120.12,0.00024,120]
[338443365,1726642609231,1120.12,0.00024,120]
[338443366,1726642609464,1120.12,0.00024,120]
[338443367,1726642609729,1120.12,0.00024,120]
[338443368,1726642609995,1120.12,0.00024,120]
[338443369,1726642610526,1120.12,0.00024,120]
[338443370,1726642610598,1120.12,0.00024,120]
[338443371,1726642610912,1120.12,0.00024,120]
[338443372,1726642611114,1120.12,0.00024,120]
[338443373,1726642611375,1120.12,0.00024,120]
[338443374,1726642611639,1120.12,0.00024,120]
[338443375,1726642611901,1120.12,0.00024,120]
[338443376,1726642612189,1120.12,0.00024,120]
[338443377,1726642612524,1120.12,0.00024,120]
[338443378,1726642612883,1120.12,0.00024,120]
[338443379,1726642613207,1120.12,0.00024,120]
[338443380,1726642613454,1120.12,0.00024,120]
[338443381,1726642613726,1120.12,0.00024,120]
[338443382,1726642614003,1120.12,0.00024,120]
[338443383,1726642614295,1120.28819729,0.00024,120]
[338443386,1726642704121,-675.16795462,0.000186,2]
[338443387,1726642704149,-1000.0,0.000189,2]
[338443388,1726642704177,-2228.85708121,0.00019068,2]
[338443389,1726642704204,-804.24065547,0.00019078,2]
[338443390,1726642704228,-502.71389276,0.00019138,2]
[338443391,1726642704255,-300.0,0.00019166,2]
[338443392,1726642704280,-496.42991498,0.00019167,2]
[338443393,1726642704311,-500.0,0.00019167,2]
[338443394,1726642704336,-159.789056,0.00019167,2]
[338443395,1726642704361,-400.86777275,0.00019167,2]
[338443396,1726642704389,-500.0,0.00019167,2]
[338443397,1726642704414,-276.91072259,0.00019167,2]
[338443398,1726642704440,-500.0,0.00019167,2]
[338443399,1726642704465,-500.0,0.00019167,2]
[338443400,1726642704492,-500.0,0.00019167,2]
[338443401,1726642704517,-500.0,0.00019167,2]
[338443402,1726642704543,-500.0,0.00019167,2]
[338443403,1726642704570,-26579.2530566,0.00019168,3]
[338443404,1726642704598,-500.0,0.00019173,2]
[338443405,1726642704622,-543.61726829,0.00019173,2]
[338443406,1726642704646,-500.0,0.00019173,2]
[338443407,1726642704672,-7559.43298659,0.00019178,5]
[338443408,1726642704695,-500.0,0.00019178,2]
[338443409,1726642704718,-500.0,0.00019178,2]
[338443410,1726642704742,-500.0,0.00019178,2]
[338443411,1726642704765,-500.0,0.00019178,2]
[338443412,1726642704788,-500.0,0.00019178,2]
[338443413,1726642704811,-500.0,0.00019178,2]
[338443414,1726642704838,-500.0,0.00019178,2]
[338443415,1726642704861,-500.0,0.00019178,2]
[338443416,1726642704883,-500.37505608,0.00019178,2]
[338443417,1726642704906,-609.20268988,0.00019178,2]
[338443418,1726642704929,-500.0,0.00019178,2]
[338443419,1726642704952,-500.0,0.00019178,2]
[338443420,1726642704976,-555.36,0.00019178,2]
[338443421,1726642704999,-500.0,0.00019178,2]
[338443422,1726642705023,-500.0,0.00019178,2]
[338443423,1726642705047,-500.0,0.00019178,2]
[338443424,1726642705069,-500.0,0.00019178,2]
[338443425,1726642705094,-500.0,0.00019178,2]
[338443426,1726642705118,-500.0,0.00019178,2]
[338443427,1726642705142,-500.0,0.00019178,2]
[338443428,1726642705165,-500.0,0.00019178,2]
[338443429,1726642705188,-500.0,0.00019178,2]
[338443430,1726642705212,-500.0,0.00019178,2]
[338443431,1726642705237,-500.0,0.00019178,2]
[338443432,1726642705260,-500.0,0.00019178,2]
[338443433,1726642705284,-500.0,0.00019178,2]
[338443434,1726642705312,-500.0,0.00019178,2]
[338443435,1726642705337,-500.0,0.00019178,2]
[338443436,1726642705360,-500.0,0.00019178,2]
[338443437,1726642705384,-500.0,0.00019178,2]
[338443438,1726642705406,-500.0,0.00019178,2]
[338443439,1726642705430,-500.0,0.00019178,2]
[338443440,1726642705456,-500.0,0.00019178,2]
[338443441,1726642705482,-500.0,0.00019178,2]
[338443442,1726642705508,-500.0,0.00019178,2]
[338443443,1726642705534,-312.39702501,0.00019178,2]
[338443444,1726642705558,-500.0,0.00019178,2]
[338443445,1726642705586,-500.0,0.00019178,2]
[338443446,1726642705611,-500.0,0.00019178,2]
[338443447,1726642705636,-500.73140609,0.00019178,2]
[338443448,1726642705661,-226.60859,0.00019178,2]
[338443449,1726642705685,-506.5322537,0.00019178,2]
[338443450,1726642705714,-226.60859,0.00019178,2]
[338443451,1726642705741,-500.0,0.00019178,2]
[338443452,1726642705767,-500.0,0.00019178,2]
[338443453,1726642705790,-500.0,0.00019178,2]
[338443454,1726642705815,-226.60859,0.00019178,2]
[338443455,1726642705839,-759.21,0.00019178,2]
[338443456,1726642705866,-226.60859,0.00019178,2]
[338443457,1726642705891,-500.0,0.00019178,2]
[338443458,1726642705916,-538.67894368,0.00019178,2]
[338443459,1726642705939,-2236.04,0.00019178,2]
[338443460,1726642705964,-500.0,0.00019178,2]
[338443461,1726642705989,-500.0,0.00019178,2]
[338443462,1726642706012,-1601.4,0.00019178,2]
[338443463,1726642706036,-500.0,0.00019178,2]
[338443464,1726642706062,-500.0,0.00019178,2]
[338443465,1726642706089,-1169.3,0.00019178,2]
[338443466,1726642706114,-502.48217541,0.00019178,2]
[338443467,1726642706139,-500.0,0.00019178,2]
[338443468,1726642706164,-500.0,0.00019178,2]
[338443469,1726642706188,-500.0,0.00019178,2]
[338443470,1726642706214,-500.0,0.00019178,2]
[338443471,1726642706238,-281.83210534,0.00019178,2]
[338443472,1726642706259,-500.0,0.00019178,2]
[338443473,1726642706281,-500.0,0.00019178,2]
[338443474,1726642706303,-596.29,0.00019178,2]
[338443475,1726642706329,-500.0,0.00019178,2]
[338443476,1726642706353,-500.0,0.00019178,2]
[338443477,1726642706376,-500.0,0.00019178,2]
[338443478,1726642706616,-500.0,0.00019178,2]
[338443479,1726642706639,-500.0,0.00019178,2]
[338443480,1726642706661,-775.88,0.00019178,2]
[338443481,1726642706683,-2229.88,0.00019178,2]
[338443482,1726642706705,-655.8,0.00019178,2]
[338443483,1726642706727,-600.44,0.00019178,2]
[338443484,1726642706748,-182.84712699,0.00019178,2]
[338443485,1726642706770,-500.0,0.00019178,2]
[338443486,1726642706791,-509.80509317,0.00019178,2]
[338443487,1726642706817,-500.0,0.00019178,2]
[338443488,1726642706840,-509.93696176,0.00019178,2]
[338443489,1726642706862,-610.92049014,0.00019178,2]
[338443490,1726642706883,-500.0,0.00019178,2]
[338443491,1726642706903,-500.0,0.00019178,2]
[338443492,1726642706926,-540.05,0.00019178,2]
[338443493,1726642706947,-500.0,0.00019178,2]
[338443494,1726642706969,-500.0,0.00019178,2]
[338443495,1726642706990,-500.0,0.00019178,2]
[338443496,1726642707012,-500.0,0.00019178,2]
[338443497,1726642707034,-743.52,0.00019178,2]
[338443498,1726642707056,-1216.32,0.00019178,2]
[338443499,1726642707077,-500.0,0.00019178,2]
[338443500,1726642707099,-202.51131607,0.00019178,2]
[338443501,1726642707121,-728.09,0.00019178,2]
[338443502,1726642707145,-500.0,0.00019178,2]
[338443503,1726642707168,-500.0,0.00019178,2]
[338443504,1726642707194,-532.79,0.00019178,2]
[338443505,1726642707219,-640.32,0.00019178,2]
[338443506,1726642707245,-500.0,0.00019178,2]
[338443507,1726642707271,-500.0,0.00019178,2]
[338443508,1726642707295,-640.32,0.00019178,2]
[338443509,1726642707321,-640.32,0.00019178,2]
[338443510,1726642707346,-640.32,0.00019178,2]
[338443511,1726642707369,-500.0,0.00019178,2]
[338443512,1726642707391,-969.95,0.00019178,2]
[338443513,1726642707414,-640.32,0.00019178,2]
[338443514,1726642707436,-640.32,0.00019178,2]
[338443515,1726642707459,-500.0,0.00019178,2]
[338443516,1726642707481,-640.32,0.00019178,2]
[338443517,1726642707502,-640.32,0.00019178,2]
[338443518,1726642707524,-640.32,0.00019178,2]
[338443519,1726642707552,-640.32,0.00019178,2]
[338443520,1726642707576,-640.32,0.00019178,2]
[338443521,1726642707602,-640.32,0.00019178,2]
[338443522,1726642707625,-640.32,0.00019178,2]
[338443523,1726642707648,-500.0,0.00019178,2]
[338443524,1726642707672,-640.32,0.00019178,2]
[338443525,1726642707694,-500.0,0.00019178,2]
[338443526,1726642707718,-500.0,0.00019178,2]
[338443527,1726642707741,-640.32,0.00019178,2]
[338443528,1726642707764,-648.53680776,0.00019178,2]
[338443529,1726642707788,-640.32,0.00019178,2]
[338443530,1726642707811,-640.32,0.00019178,2]
[338443531,1726642707836,-500.0,0.00019178,2]
[338443532,1726642707859,-640.32,0.00019178,2]
[338443533,1726642707883,-640.32,0.00019178,2]
[338443534,1726642707907,-640.32,0.00019178,2]
[338443535,1726642707930,-640.32,0.00019178,2]
[338443536,1726642707955,-640.32,0.00019178,2]
[338443537,1726642707978,-500.0,0.00019178,2]
[338443538,1726642708003,-640.32,0.00019178,2]
[338443539,1726642708028,-640.53420821,0.00019178,2]
[338443540,1726642708050,-648.06289456,0.00019178,2]
[338443541,1726642708073,-1177.59,0.00019178,2]
[338443542,1726642708096,-695.19,0.00019178,2]
[338443543,1726642708119,-4496.76,0.00019178,2]
[338443544,1726642708143,-500.0,0.00019178,2]
[338443545,1726642708166,-657.5,0.00019178,2]
[338443546,1726642708189,-3786.91,0.00019178,2]
[338443547,1726642708213,-1722.62,0.00019178,2]
[338443548,1726642708242,-1150.06,0.00019178,2]
[338443549,1726642708269,-628.32,0.00019178,2]
[338443550,1726642708293,-502.58,0.00019178,2]
[338443551,1726642708319,-500.0,0.00019178,2]
[338443552,1726642708355,-500.0,0.00019178,2]
[338443553,1726642708380,-500.0,0.00019178,2]
[338443554,1726642708405,-500.0,0.00019178,2]
[338443555,1726642708429,-500.0,0.00019178,2]
[338443556,1726642708453,-891.2,0.00019178,2]
[338443557,1726642708479,-500.0,0.00019178,2]
[338443558,1726642708503,-1121.2,0.00019178,2]
[338443559,1726642708529,-468.41,0.00019178,2]
[338443560,1726642708555,-500.0,0.00019178,2]
[338443561,1726642708580,-500.0,0.00019178,2]
[338443562,1726642708603,-500.0,0.00019178,2]
[338443563,1726642708625,-572.34,0.00019178,2]
[338443564,1726642708650,-500.0,0.00019178,2]
[338443565,1726642708673,-623.08793146,0.00019178,2]
[338443566,1726642708697,-624.53,0.00019178,2]
[338443567,1726642708722,-500.0,0.00019178,2]
[338443568,1726642708745,-626.6640944,0.00019178,2]
[338443569,1726642708769,-1431.11,0.00019178,2]
[338443570,1726642708792,-894.98,0.00019178,2]
[338443571,1726642708816,-500.0,0.00019178,2]
[338443572,1726642708843,-860.97,0.00019178,2]
[338443573,1726642708867,-500.0,0.00019178,2]
[338443574,1726642708890,-500.0,0.00019178,2]
[338443575,1726642708912,-500.0,0.00019178,2]
[338443576,1726642708935,-500.0,0.00019178,2]
[338443577,1726642708959,-500.0,0.00019178,2]
[338443578,1726642708982,-500.0,0.00019178,2]
[338443579,1726642709005,-500.0,0.00019178,2]
[338443580,1726642709027,-500.0,0.00019178,2]
[338443581,1726642709050,-500.0,0.00019178,2]
[338443582,1726642709072,-500.0,0.00019178,2]
[338443583,1726642709097,-500.0,0.00019178,2]
[338443584,1726642709120,-500.0,0.00019178,2]
[338443585,1726642709144,-500.0,0.00019178,2]
[338443586,1726642709167,-500.0,0.00019178,2]
[338443587,1726642709190,-500.0,0.00019178,2]
[338443588,1726642709222,-500.0,0.00019178,2]
[338443589,1726642709252,-500.0,0.00019178,2]
[338443590,1726642709278,-500.0,0.00019178,2]
[338443591,1726642709303,-2545.07,0.00019178,2]
[338443592,1726642709334,-500.0,0.00019178,2]
[338443593,1726642709357,-500.0,0.00019178,2]
[338443594,1726642709382,-500.0,0.00019178,2]
[338443595,1726642709406,-500.0,0.00019178,2]
[338443596,1726642709431,-500.0,0.00019178,2]
[338443597,1726642709456,-500.0,0.00019178,2]
[338443598,1726642709480,-500.0,0.00019178,2]
[338443599,1726642709505,-211.15239255,0.00019178,2]
[338443600,1726642709530,-500.0,0.00019178,2]
[338443601,1726642709554,-500.0,0.00019178,2]
[338443602,1726642709580,-500.0,0.00019178,2]
[338443603,1726642709605,-750.11,0.00019178,2]
[338443604,1726642709629,-500.0,0.00019178,2]
[338443605,1726642709654,-500.0,0.00019178,2]
[338443606,1726642709679,-500.0,0.00019178,2]
[338443607,1726642709947,-500.0,0.00019178,2]
[338443608,1726642709973,-500.0,0.00019178,2]
[338443609,1726642709997,-1722.36,0.00019178,2]
[338443610,1726642710024,-500.0,0.00019178,2]
[338443611,1726642710050,-644.81898305,0.00019178,2]
[338443612,1726642710076,-500.0,0.00019178,2]
[338443613,1726642710100,-500.0,0.00019178,2]
[338443614,1726642710125,-380.90304259,0.00019178,2]
[338443615,1726642710149,-250.0,0.00019178,2]
[338443616,1726642710172,-915.36,0.00019178,2]
[338443617,1726642710195,-639.25,0.00019178,2]
[338443618,1726642710220,-500.0,0.00019178,2]
[338443619,1726642710244,-500.0,0.00019178,2]
[338443620,1726642710269,-500.0,0.00019178,2]
[338443621,1726642710294,-1782.09,0.00019178,2]
[338443622,1726642710320,-796.51,0.00019178,2]
[338443623,1726642710345,-500.0,0.00019178,2]
[338443624,1726642710371,-500.0,0.00019178,2]
[338443625,1726642710397,-2190.91,0.00019178,2]
[338443626,1726642710422,-500.0,0.00019178,2]
[338443627,1726642710447,-577.59,0.00019178,2]
[338443628,1726642710471,-500.0,0.00019178,2]
[338443629,1726642710493,-500.0,0.00019178,2]
[338443630,1726642710519,-151.0,0.00019178,2]
[338443631,1726642710543,-151.0,0.00019178,2]
[338443632,1726642710568,-1510.25,0.00019178,2]
[338443633,1726642710592,-151.0,0.00019178,2]
[338443634,1726642710617,-156.503991,0.00019178,2]
[338443635,1726642710643,-500.0,0.00019178,2]
[338443636,1726642710669,-1184.83,0.00019178,2]
[338443637,1726642710695,-500.0,0.00019178,2]
[338443638,1726642710719,-500.0,0.00019178,2]
[338443639,1726642710742,-500.0,0.00019178,2]
[338443640,1726642710766,-1724.7,0.00019178,2]
[338443641,1726642710788,-1480.05,0.00019178,2]
[338443642,1726642710810,-500.0,0.00019178,2]
[338443643,1726642710832,-1273.15,0.00019178,2]
[338443644,1726642710854,-3950.24,0.00019178,2]
[338443645,1726642710878,-1058.15,0.00019178,2]
[338443646,1726642710901,-780.74,0.00019178,2]
[338443647,1726642710924,-500.0,0.00019178,2]
[338443648,1726642710947,-531.75,0.00019178,2]
[338443649,1726642710971,-151.0,0.00019178,2]
[338443650,1726642710993,-551.24,0.00019178,2]
[338443651,1726642711016,-783.35,0.00019178,2]
[338443652,1726642711039,-500.0,0.00019178,2]
[338443653,1726642711062,-500.0,0.00019178,2]
[338443654,1726642711085,-1159.62,0.00019178,2]
[338443655,1726642711108,-500.0,0.00019178,2]
[338443656,1726642711132,-544.81,0.00019178,2]
[338443657,1726642711155,-638.07343698,0.00019178,2]
[338443658,1726642711179,-500.0,0.00019178,2]
[338443659,1726642711202,-2217.64,0.00019178,2]
[338443660,1726642711224,-2567.18,0.00019178,2]
[338443661,1726642711248,-774.96,0.00019178,2]
[338443662,1726642711271,-500.0,0.00019178,2]
[338443663,1726642711294,-500.0,0.00019178,2]
[338443664,1726642711320,-998.95,0.00019178,2]
[338443665,1726642711345,-500.0,0.00019178,2]
[338443666,1726642711369,-500.0,0.00019178,2]
[338443667,1726642711392,-500.0,0.00019178,2]
[338443668,1726642711415,-539.8,0.00019178,2]
[338443669,1726642711438,-1727.44,0.00019178,2]
[338443670,1726642711461,-2164.88,0.00019178,2]
[338443671,1726642711484,-563.11,0.00019178,2]
[338443672,1726642711507,-549.03,0.00019178,2]
[338443673,1726642711529,-754.86,0.00019178,2]
[338443674,1726642711552,-502.76714565,0.00019178,2]
[338443675,1726642711575,-500.0,0.00019178,2]
[338443676,1726642711598,-1758.33,0.00019178,2]
[338443677,1726642711621,-500.0,0.00019178,2]
[338443678,1726642711643,-500.0,0.00019178,2]
[338443679,1726642711666,-500.0,0.00019178,2]
[338443680,1726642711689,-2412.34,0.00019178,2]
[338443681,1726642711712,-2479.98,0.00019178,2]
[338443682,1726642711734,-500.0,0.00019178,2]
[338443683,1726642711757,-772.18,0.00019178,2]
[338443684,1726642711783,-500.0,0.00019178,2]
[338443685,1726642711810,-500.0,0.00019178,2]
[338443686,1726642711842,-500.0,0.00019178,2]
[338443687,1726642711870,-500.0,0.00019178,2]
[338443688,1726642711896,-1025.31,0.00019178,2]
[338443689,1726642711921,-1000.0,0.00019178,2]
[338443690,1726642711944,-2459.19,0.00019178,2]
[338443691,1726642711969,-1091.36,0.00019178,2]
[338443692,1726642711995,-500.0,0.00019178,2]
[338443693,1726642712019,-500.0,0.00019178,2]
[338443694,1726642712042,-2618.27,0.00019178,2]
[338443695,1726642712067,-500.0,0.00019178,2]
[338443696,1726642712092,-739.96,0.00019178,2]
[338443697,1726642712118,-1286.57,0.00019178,2]
[338443698,1726642712145,-749.66,0.00019178,2]
[338443699,1726642712169,-1286.57,0.00019178,2]